[Event "73rd ARM-chW Highest League 2018"]
[Site "Yerevan"]
[Date "2018.01.20"]
[Round "9"]
[White "Gaboyan, Susanna"]
[Black "Mkrtchyan, Mariam"]
[Result "1-0"]
[ECO "A05"]
[WhiteElo "2168"]
[BlackElo "1834"]
[Annotator "NA"]
[PlyCount "85"]
[EventDate "2018.??.??"]
[EventType "tourn"]
[EventCountry "ARM"]
[SourceTitle "playchess.com"]
[Source "ChessBase"]
[SourceQuality "1"]
[TimeControl "40/5400+30:1800+30"]

1. Nf3 {[%emt 0:00:00]} Nf6 {[%emt 0:00:25]} 2. g3 {[%emt 0:00:34]} b6 {[%emt 0:01:52]} 3. Bg2 {[%emt 0:00:13]} Bb7 {[%emt 0:00:01]} 4. O-O {[%emt 0:00:10]} e6 {[%emt 0:00:03]} 5. d3 {[%emt 0:00:12]} d5 {[%emt 0:03:25]} 6. Nbd2 {[%emt 0:01:01]} Be7 {[%emt 0:00:08]} 7. b3 {[%emt 0:00:10]} O-O {[%emt 0:00:34]} 8. Bb2 {[%emt 0:00:10]} Nbd7 {[%emt 0:07:11]} 9. Re1 {[%emt 0:02:31]} Nc5 {[%emt 0:02:24]} 10. a4 {[%emt 0:03:13]} a5 {[%emt 0:01:33]} 11. Ne5 {[%emt 0:00:08]} Nfd7 {[%emt 0:08:50]} 12. e4 {[%emt 0:01:55]} Nxe5 {[%emt 0:09:28]} 13. Bxe5 {[%emt 0:00:11]} dxe4 {[%emt 0:01:15]} 14. Nxe4 {[%emt 0:03:31]} Nxe4 {[%emt 0:06:54]} 15. dxe4 {[%emt 0:02:38]} f6 {[%emt 0:03:01]} 16. Bc3 $11 {[%emt 0:04:42]} Qxd1 {[%emt 0:05:27]} 17. Raxd1 {[%emt 0:00:11]} e5 {[%emt 0:02:02]} 18. Bh3 {[%emt 0:03:25]} Rfd8 {[%emt 0:03:30]} 19. Bd7 {[%emt 0:03:04]} Bd6 {[%emt 0:03:32]} 20. Be6+ {[%emt 0:08:05]} Kf8 {[%emt 0:00:20]} 21. Bd5 {[%emt 0:01:41]} c6 {[%emt 0:01:30]} 22. Bc4 {[%emt 0:00:56]} Ke7 {[%emt 0:01:44]} 23. f4 {[%emt 0:04:42]} Ba6 {[%emt 0:13:39]} 24. Bxa6 {[%emt 0:04:40]} Rxa6 {[%emt 0:00:10]} 25. f5 {[%emt 0:03:04]} Ra7 {[%emt 0:02:35]} 26. Kg2 {[%emt 0:02:14]} Rad7 {[%emt 0:00:34]} 27. Rd2 {[%emt 0:03:11]} Bb4 {[%emt 0:03:58]} 28. Bxb4+ {[%emt 0:00:39]} axb4 {[%emt 0:00:08]} 29. Rxd7+ {[%emt 0:04:11]} Rxd7 {[%emt 0:00:01]} 30. Kf3 {[%emt 0:00:29]} Rd4 {[%emt 0:11:43]} 31. Ke3 {[%emt 0:00:31]} Kd6 {[%emt 0:00:16]} 32. Ra1 {[%emt 0:00:23]} Kc7 {[%emt 0:01:47]} 33. g4 {[%emt 0:01:32]} h6 {[%emt 0:00:29]} 34. h4 {[%emt 0:00:14]} c5 {[%emt 0:01:15]} 35. g5 {[%emt 0:00:51]} hxg5 {[%emt 0:00:24]} 36. hxg5 {[%emt 0:00:02]} c4 {[%emt 0:01:30]} 37. Rh1 {[%emt 0:03:09]} fxg5 {[%emt 0:03:29]} 38. bxc4 {[%emt 0:05:03]} Rxc4 {[%emt 0:00:53]} 39. Rh7 {[%emt 0:00:06]} Rxc2 {[%emt 0:00:22]} 40. f6 {[%emt 0:00:00]} Rc3+ {[%emt 0:00:41]} 41. Kd2 {[%emt 0:00:20]} Kd6 {[%emt 0:00:52]} 42. fxg7 {[%emt 0:00:07]} Rc8 {[%emt 0:00:23]} 43. Rh8 {[%emt 0:00:04]} 1-0

[Event "73rd ARM-chW Highest League 2018"]
[Site "Yerevan"]
[Date "2018.01.20"]
[Round "9"]
[White "Ghukasyan, Siranush"]
[Black "Khachatryan, Anna"]
[Result "1-0"]
[ECO "B31"]
[WhiteElo "2166"]
[BlackElo "2004"]
[Annotator "NA"]
[PlyCount "65"]
[EventDate "2018.??.??"]
[EventType "tourn"]
[EventCountry "ARM"]
[SourceTitle "playchess.com"]
[Source "ChessBase"]
[SourceQuality "1"]
[TimeControl "40/5400+30:1800+30"]

1. e4 {[%emt 0:01:02]} c5 {[%emt 0:00:11]} 2. Nf3 {[%emt 0:00:05]} Nc6 {[%emt 0:00:07]} 3. Bb5 {[%emt 0:00:04]} g6 {[%emt 0:00:09]} 4. Bxc6 {[%emt 0:00:05]} dxc6 {[%emt 0:00:13]} 5. d3 {[%emt 0:00:03]} Bg7 {[%emt 0:00:06]} 6. h3 {[%emt 0:00:03]} b6 {[%emt 0:00:04]} 7. O-O {[%emt 0:00:19]} e5 {[%emt 0:00:31]} 8. a3 {[%emt 0:00:05]} Ne7 {[%emt 0:01:35]} 9. Be3 {[%emt 0:00:44]} Be6 {[%emt 0:07:01]} 10. b4 {[%emt 0:07:04]} cxb4 {[%emt 0:16:03]} 11. axb4 {[%emt 0:00:10]} h6 {[%emt 0:02:12]} 12. d4 {[%emt 0:17:22]} exd4 {[%emt 0:13:35]} 13. Bxd4 {[%emt 0:00:18]} O-O $14 {[%emt 0:00:20]} 14. Bxg7 {[%emt 0:09:32]} Kxg7 {[%emt 0:00:27]} 15. Qe1 {[%emt 0:00:08]} Qc8 {[%emt 0:11:45]} 16. Qc3+ {[%emt 0:00:35]} Kh7 {[%emt 0:00:15]} 17. Nbd2 {[%emt 0:02:32]} Rd8 {[%emt 0:05:02]} 18. Nd4 {[%emt 0:07:27]} c5 {[%emt 0:15:45]} 19. Nxe6 {[%emt 0:04:40]} Qxe6 {[%emt 0:00:06]} 20. b5 {[%emt 0:00:54]} Qd7 {[%emt 0:04:54]} 21. Qb3 {[%emt 0:04:10]} Kg8 {[%emt 0:05:01]} 22. Nf3 {[%emt 0:00:39]} Qd6 {[%emt 0:02:18]} 23. Ra4 Nc8 {[%emt 0:01:37]} 24. Rfa1 {[%emt 0:05:23]} Rb8 {[%emt 0:00:47]} 25. Qe3 {[%emt 0:01:27]} Kg7 {[%emt 0:03:40]} 26. e5 {[%emt 0:01:10]} Qe6 {[%emt 0:00:15]} 27. Rh4 {[%emt 0:00:44]} Rh8 {[%emt 0:00:12]} 28. Rf4 {[%emt 0:05:13]} Rb7 {[%emt 0:02:15]} 29. Rf6 {[%emt 0:00:48]} Qd5 {[%emt 0:01:41]} 30. Qf4 {[%emt 0:01:27]} Re8 {[%emt 0:01:49]} 31. Rc6 {[%emt 0:04:05]} Rbe7 {[%emt 0:02:47]} 32. Rxc8 {[%emt 0:05:29]} Rxc8 {[%emt 0:01:22]} 33. Qf6+ {[%emt 0:00:06]} 1-0

[Event "73rd ARM-chW Highest League 2018"]
[Site "Yerevan"]
[Date "2018.01.20"]
[Round "9"]
[White "Asatryan, Sona"]
[Black "Gevorgyan, Maria"]
[Result "1-0"]
[ECO "B41"]
[WhiteElo "2111"]
[BlackElo "2258"]
[Annotator "NA"]
[PlyCount "91"]
[EventDate "2018.??.??"]
[EventType "tourn"]
[EventCountry "ARM"]
[SourceTitle "playchess.com"]
[Source "ChessBase"]
[SourceQuality "1"]
[TimeControl "40/5400+30:1800+30"]

1. e4 {[%emt 0:00:00]} c5 {[%emt 0:02:10]} 2. Nf3 {[%emt 0:00:00]} e6 {[%emt 0:00:04]} 3. d4 {[%emt 0:00:00]} cxd4 {[%emt 0:00:04]} 4. Nxd4 {[%emt 0:00:00]} a6 {[%emt 0:00:03]} 5. c4 {[%emt 0:00:12]} Nf6 {[%emt 0:00:10]} 6. Nc3 {[%emt 0:00:17]} Qc7 {[%emt 0:00:05]} 7. Be2 {[%emt 0:00:46]} Bb4 {[%emt 0:00:05]} 8. Qd3 {[%emt 0:04:54]} Nc6 {[%emt 0:00:09]} 9. Nxc6 {[%emt 0:00:27]} dxc6 {[%emt 0:00:06]} 10. a3 {[%emt 0:00:35]} Bd6 {[%emt 0:03:40]} 11. Bg5 {[%emt 0:04:37]} Nd7 {[%emt 0:06:46]} 12. Rd1 {[%emt 0:02:56]} Be5 {[%emt 0:04:58]} 13. g3 {[%emt 0:11:31]} Bf6 {[%emt 0:07:47]} 14. Bxf6 {[%emt 0:07:23]} Nxf6 {[%emt 0:00:13]} 15. e5 $1 {[%emt 0:00:14]} Nd7 {[%emt 0:00:47]} 16. f4 {[%emt 0:00:41]} O-O {[%emt 0:03:56]} 17. Ne4 $18 {[%emt 0:03:37]} f6 {[%emt 0:03:22]} 18. Nd6 {[%emt 0:06:51]} Nc5 {[%emt 0:01:07]} 19. Qd4 {[%emt 0:04:11]} b6 {[%emt 0:00:13]} 20. O-O {[%emt 0:08:58]} a5 {[%emt 0:12:13]} 21. b4 {[%emt 0:10:50]} axb4 {[%emt 0:00:34]} 22. axb4 {[%emt 0:00:03]} Na6 {[%emt 0:01:30]} 23. c5 {[%emt 0:06:47]} bxc5 {[%emt 0:13:35]} 24. bxc5 {[%emt 0:00:07]} Rb8 {[%emt 0:00:03]} 25. Rb1 {[%emt 0:05:44]} Rxb1 {[%emt 0:11:48]} 26. Rxb1 {[%emt 0:00:13]} Qd7 {[%emt 0:02:00]} 27. Ra1 {[%emt 0:02:48]} Nc7 {[%emt 0:00:11]} 28. Ra7 {[%emt 0:01:44]} Qd8 {[%emt 0:01:45]} 29. exf6 {[%emt 0:01:57]} gxf6 {[%emt 0:01:07]} 30. Qe4 {[%emt 0:04:48]} Bd7 {[%emt 0:03:05]} 31. Qb4 {[%emt 0:02:41]} Bc8 {[%emt 0:02:49]} 32. Qb6 {[%emt 0:03:32]} Nd5 {[%emt 0:02:50]} 33. Qxc6 {[%emt 0:00:27]} f5 {[%emt 0:00:27]} 34. Bf3 {[%emt 0:04:45]} Nf6 {[%emt 0:07:19]} 35. Ra8 {[%emt 0:00:53]} Nd5 {[%emt 0:05:47]} 36. Qxc8 {[%emt 0:00:53]} Qxc8 {[%emt 0:01:25]} 37. Rxc8 {[%emt 0:00:04]} Rxc8 {[%emt 0:00:02]} 38. Nxc8 {[%emt 0:00:04]} Nb4 {[%emt 0:00:03]} 39. c6 {[%emt 0:01:40]} Kf8 {[%emt 0:00:03]} 40. Nd6 {[%emt 0:00:00]} Na6 {[%emt 0:00:14]} 41. Nb5 {[%emt 0:02:34]} Ke7 {[%emt 0:00:06]} 42. Kg2 {[%emt 0:00:52]} Nc5 {[%emt 0:00:08]} 43. Kh3 {[%emt 0:00:58]} Kd8 {[%emt 0:01:48]} 44. Kh4 {[%emt 0:02:16]} e5 {[%emt 0:00:21]} 45. fxe5 {[%emt 0:00:19]} Nd3 {[%emt 0:00:03]} 46. Bd5 {[%emt 0:01:22]} 1-0